Cogmind - Beta 15 @@@ ROGUE MODE // 2025.08.12 @ 22:12:14 Player: Solshine Result: Destroyed by S-27 Virus with Autogun Performance ------------- Evolutions (3) 1500 Regions Visited (5) 1000 Robots Destroyed (30) 150 Value Destroyed (867) 867 Prototype IDs (1) 20 Alien Tech Used (0) 0 Bonus (0) 0 TOTAL SCORE: 3537 Bonus ------- None Cogmind --------- Core Integrity 0/700 Matter 300/300 Energy 98/100 System Corruption 2% Temperature Cool (0) Movement Core (50) Location -7/Lower Caves Parts ------- > --- POWER (2) -------- (None) > --- PROPULSION (5) --- (None) > --- UTILITY (3) ------ Visual Processing Unit > --- WEAPON (3) ------- (None) > --- INVENTORY (5) ---- Lightning Gun Heavy Assault Rifle Rocket Launcher Improved Datajack Plasma Cutter Peak State ------------ > --- POWER ------------ Light Nuclear Core Micro Nuclear Core > --- PROPULSION ------- Aluminum Leg Aluminum Leg Gravmag System Gravmag System Gravmag System > --- UTILITY ---------- Visual Processing Unit Seismic Detector Weapon Cycler > --- WEAPON ----------- Enhanced Autogun Enhanced Autogun Gauss Rifle > --- INVENTORY -------- Lightning Gun Heavy Assault Rifle Rocket Launcher Improved Datajack Plasma Cutter [Rating: 41] Favorites ----------- Power Ion Engine Engine Ion Engine Power Core Light Nuclear Core Propulsion Aluminum Leg Treads Light Treads Leg Aluminum Leg Hover Unit Gravmag System Utility Seismic Detector Device Seismic Detector Storage Small Storage Unit Processor Visual Processing Unit Protection Hardened Medium Armor Plating Weapon Assault Rifle Energy Gun Lightning Gun Ballistic Gun Assault Rifle Launcher Rocket Launcher Special Weapon Plasma Cutter Special Melee Weapon Improved Datajack Build | -11 -10 -9 -8 -7 -7 ------- Run | Yrd Mat Mat Mat Fac Low Slots Evolved 6 | . . 2 2 2 . Power 1 | . . . . 1 . Propulsion 3 | . . 2 . 1 . Utility 1 | . . . 1 . . Weapon 1 | . . . 1 . . Parts Attached 40 | 9 1 8 16 5 1 Power 6 | 1 . 1 3 1 . Engine 2 | 1 . 1 . . . Core 4 | . . . 3 1 . Reactor . | . . . . . . Propulsion 14 | 2 . 5 3 4 . Treads 1 | . . 1 . . . Leg 9 | 2 . 4 3 . . Wheel . | . . . . . . Hover 4 | . . . . 4 . Flight . | . . . . . . Utility 6 | 3 . 1 1 . 1 Device 3 | 2 . . 1 . . Storage 1 | 1 . . . . . Processor 1 | . . 1 . . . Hackware . | . . . . . . Protection 1 | . . . . . 1 Artifact . | . . . . . . Weapon 14 | 3 1 1 9 . . Energy Gun 3 | 2 . . 1 . . Energy Cannon . | . . . . . . Ballistic Gun 8 | 1 1 1 5 . . Ballistic Cannon . | . . . . . . Launcher 1 | . . . 1 . . Special Weapon 1 | . . . 1 . . Impact Weapon . | . . . . . . Slashing Weapon . | . . . . . . Piercing Weapon . | . . . . . . Special Melee Weapon 1 | . . . 1 . . Unidentified Prototypes 1 | . . . 1 . . Parts Lost 17 | . . . 5 . 12 Power 3 | . . . 1 . 2 Propulsion 8 | . . . 4 . 4 Utility 3 | . . . . . 3 Weapon 3 | . . . . . 3 Highest Loss Streak 11 | . . . 2 . 11 To Critical Strikes . | . . . . . . Average Backups 4 | 3 4 4 4 4 5 Power 1 | . 1 1 1 . . Propulsion . | 1 1 . . . . Utility . | . 1 1 . . . Weapon 2 | 1 1 2 1 2 3 Tool/Special . | . . . . . . Unused Backups 2 | . . . 1 . 1 Power 1 | . . . 1 . . Propulsion . | . . . . . . Utility . | . . . . . . Weapon 1 | . . . . . 1 Tool/Special . | . . . . . . Average Slot Usage (%) 91 | . 96 97 95 83 50 Engine 6 | . 14 11 1 . . Core 3 | . . . 6 8 7 Leg 30 | . 28 39 32 15 5 Hover 1 | . . . . 12 11 Device 19 | . 24 21 18 15 7 Processor 4 | . . . 9 7 7 Energy Gun 1 | . 2 . 2 . . Ballistic Gun 21 | . 25 22 23 23 10 Peak Build Rating 41 | 9 9 12 27 41 41 Average Rating 16 | 5 8 10 24 32 20 On Entrance 15 | . 9 9 11 25 41 Naked Turns . | . . . . . . Heaviest Build 23 | 15 11 12 17 23 23 Greatest Support 40 | 20 20 40 40 27 27 Greatest Overweight (x) 2 | . . . . 2 2 Average Overweight (x) . | . . . . . . Largest Inventory Capacity 8 | 8 5 5 5 5 5 Average Capacity 5 | 6 5 5 5 5 5 Most Carried 5 | 5 5 5 5 5 5 Average Carried 4 | 3 4 4 4 4 5 Final Capacity 5 | 5 5 5 5 5 5 Final Carried 5 | 4 5 5 4 5 5 Class Distribution -------------------- 43% | Scavenger-Gunner 31% | Mutant 25% | Scavenger-Mutant Dominant Class ---------------- Mutant | -10/Materials Scavenger-Mutant | -9/Materials Scavenger-Gunner | -8/Materials Scavenger-Gunner | -7/Factory Mutant | -7/Lower Caves Resources | -11 -10 -9 -8 -7 -7 ----------- Run | Yrd Mat Mat Mat Fac Low Matter Collected 1356 | 208 . 197 900 41 10 Remotely . | . . . . . . Salvage Created 1110 | 25 . 197 847 41 . Parts 53 | 4 . 10 35 4 . Haulers Intercepted 2 | . . . 2 . . Recyclers Shooed 3 | 1 . . 2 . . Parts Field Recycled . | . . . . . . Retrieved Matter . | . . . . . . Parts Self-Destructed 2 | . . . . . 2 Prevented . | . . . . . . Kills | -11 -10 -9 -8 -7 -7 ------- Run | Yrd Mat Mat Mat Fac Low Combat Hostiles Destroyed 22 | . . 4 17 1 . Guns 20 | . . 4 15 1 . AOE 2 | . . . 2 . . Classes Destroyed 10 | 1 . 2 6 1 . Builder 1 | . . . 1 . . Tunneler 1 | 1 . . . . . Hauler 2 | . . . 2 . . Recycler 2 | . . . 2 . . Watcher 2 | . . 1 1 . . Swarmer 7 | . . . 7 . . Grunt 12 | . . 4 8 . . Sentry 1 | . . . 1 . . Hunter 1 | . . . 1 . . Programmer 1 | . . . . 1 . Best Kill Streak 3 | 1 . 1 3 1 . Combat Bots Only 3 | . . 1 3 1 . Max Kills in Single Turn 2 | 1 . 1 2 1 . Gunslinging 1 | . . . 1 . . Exploded 2 | . . . 2 . . Melee . | . . . . . . Uniques/NPCs Destroyed . | . . . . . . Combat | -11 -10 -9 -8 -7 -7 -------- Run | Yrd Mat Mat Mat Fac Low Hostile Shots Fired 295 | . 6 30 106 10 143 Missed 101 | . 4 10 22 4 61 Hits 194 | . 2 20 84 6 82 Melee 2 | . . . . . 2 Projectile 192 | . 2 20 84 6 80 Critical Strikes 2 | . . . 2 . . Damage Taken 2633 | . 32 248 970 93 1290 Core 880 | . 18 44 107 47 664 Absorbed by Shields . | . . . . . . Regen/Repaired (Parts) 11 | . 11 . . . . Core Remaining (%) 90 | 100 92 89 80 . . Volleys Fired 90 | 5 . 17 65 3 . Largest 3 | 2 . 2 3 3 . Hottest 105 | 60 . 40 105 78 . Shots Fired 205 | 9 . 34 153 9 . Gun 201 | 9 . 34 149 9 . Cannon . | . . . . . . Launcher 4 | . . . 4 . . Special . | . . . . . . Kinetic 187 | 5 . 34 139 9 . Thermal . | . . . . . . Explosive 4 | . . . 4 . . Electromagnetic 14 | 4 . . 10 . . Robot Hit Streak 10 | 4 . 7 10 3 . Robot Miss Streak 5 | 1 . 3 5 2 . Penetration Max 1 | . . . 1 . . Secondary Targets 5 | . . . 5 . . Max Gunslinging Chain 2 | . . . 2 . . Shots Hit Robots 116 | 7 . 21 84 4 . Core Hits 54 | 1 1 9 41 2 . Critical Kills . | . . . . . . Critical Parts Destroyed 1 | . . . 1 . . Critical Strikes 1 | . . . 1 . . Destroy 1 | . . . 1 . . Melee Attacks 6 | . . . 6 . . Impact . | . . . . . . Slashing . | . . . . . . Piercing . | . . . . . . Sneak Attacks 3 | . . . 3 . . Combat Hostiles . | . . . . . . Follow-up Attacks . | . . . . . . Damage Inflicted 2155 | 85 1 267 1706 83 13 Guns 1845 | 85 . 267 1410 83 . Cannons . | . . . . . . Explosions 272 | . . . 272 . . Melee . | . . . . . . Ramming 38 | . 1 . 24 . 13 Kinetic 1659 | 58 . 267 1251 83 . Thermal . | . . . . . . Explosive 272 | . . . 272 . . Electromagnetic 186 | 27 . . 159 . . Impact . | . . . . . . Slashing . | . . . . . . Piercing . | . . . . . . Highest Corruption 3 | . . . 3 2 2 Average Corruption 2 | . . . 2 1 2 Corruption Purged . | . . . . . . Corruption Blocked . | . . . . . . Effects 9 | . . . 8 . 1 Message Errors 2 | . . . 2 . . Matter Fused 3 | . . . 3 . . Heat Flow Errors 1 | . . . . . 1 Energy Discharges 2 | . . . 2 . . Data Loss (minor) 1 | . . . 1 . . Overload Shots . | . . . . . . Overflow Damage . | . . . . . . Projectiles . | . . . . . . Explosions . | . . . . . . Melee . | . . . . . . Knockbacks . | . . . . . . Impact . | . . . . . . Kinetic . | . . . . . . Secondary . | . . . . . . Self-Inflicted Damage 6 | . . . . . 6 Shots . | . . . . . . Rammed 3 | . . . . . 3 Targets Rammed 16 | 1 1 . 11 . 3 Kicked 13 | 1 1 . 11 . . Crushed . | . . . . . . Highest Temperature 240 | . . . 240 48 223 Average Temperature 71 | . . . 72 25 77 Received Heat Transfer 777 | . 18 138 360 . 261 Siege Activations . | . . . . . . Martial Activations . | . . . . . . Shielding Activations . | . . . . . . Robots Disrupted . | . . . . . . Combat Hostiles . | . . . . . . Robots Corrupted . | . . . . . . Combat Hostiles . | . . . . . . Parts Fried 1 | . . . 1 . . Impact Corruptions . | . . . . . . Robots Melted . | . . . . . . Combat Hostiles . | . . . . . . Parts Melted . | . . . . . . Heat Transferred . | . . . . . . Parts Sabotaged . | . . . . . . Parts Stolen 1 | . . . . . 1 Parts Stripped . | . . . . . . Power Chain Reactions . | . . . . . . Alert | -11 -10 -9 -8 -7 -7 ------- Run | Yrd Mat Mat Mat Fac Low Maximum Alert Level 1 | . . . 1 . . Low Security (%) 98 | 100 100 100 95 100 . Level 1 1 | . . . 4 . . Level 2 . | . . . . . . Level 3 . | . . . . . . Level 4 . | . . . . . . Level 5 . | . . . . . . High Security . | . . . . . . Max Security . | . . . . . . Peak Influence 228 | . 5 55 228 100 . Initial 100 | . . . . 100 . Average 33 | . . 11 67 74 . Influence Increases 1003 | 5 5 160 562 31 240 Destroy 0b10 Robot/C 440 | . . 80 340 20 . Destroy 0b10 Robot/NC 40 | 5 . 5 30 . . Destroy Leader 98 | . . 22 66 10 . Successful Hack 13 | . 5 8 . . . Disable Machine 60 | . . . 60 . . Destroy Structure 52 | . . . 51 1 . Lose Combat Pursuer 300 | . . 45 15 . 240 Influence Decreases 853 | 5 5 160 342 190 151 Entered New Map 144 | . . . . 120 24 Time Decay 612 | 5 5 160 292 70 80 Lost Part 97 | . . . 50 . 47 Squads Dispatched 3 | . . 1 2 . . Investigation . | . . . . . . Extermination . | . . . . . . Reinforcement 3 | . . 1 2 . . Assault . | . . . . . . Garrison . | . . . . . . Intercept . | . . . . . . Searches Triggered . | . . . . . . Construction Impeded . | . . . . . . Haulers Reinforced . | . . . . . . Active Scanning Responses . | . . . . . . Cargo Convoy Interrupts . | . . . . . . Stealth | -11 -10 -9 -8 -7 -7 --------- Run | Yrd Mat Mat Mat Fac Low Distress Signals 3 | . . 2 1 . . Communications Jammed . | . . . . . . Distress Signals . | . . . . . . Times Spotted 63 | . 4 11 26 1 21 Peak Tracking Total 11 | . 3 4 6 1 11 Tactical Retreats 9 | . . 3 1 . 5 Traps | -11 -10 -9 -8 -7 -7 ------- Run | Yrd Mat Mat Mat Fac Low Traps Triggered 2 | . . . 2 . . Indirectly . | . . . . . . Trap Hack Attempts . | . . . . . . Triggered . | . . . . . . Disarmed . | . . . . . . Reprogrammed . | . . . . . . Reused . | . . . . . . Traps Extracted . | . . . . . . Installed . | . . . . . . Triggered . | . . . . . . Machines | -11 -10 -9 -8 -7 -7 ---------- Run | Yrd Mat Mat Mat Fac Low Machines Disabled 4 | . . . 4 . . Max in Single Turn 1 | . . . 1 . . Machines Repaired . | . . . . . . Machines Dismantled 1 | . . . 1 . . Machines Sabotaged . | . . . . . . Overloaded Fab Kills . | . . . . . . Hacking | -11 -10 -9 -8 -7 -7 --------- Run | Yrd Mat Mat Mat Fac Low Machines Accessed 6 | . 3 3 . . . Terminals 4 | . 1 3 . . . Fabricators . | . . . . . . Repair Stations 1 | . 1 . . . . Recycling Units 1 | . 1 . . . . Scanalyzers . | . . . . . . Garrison Access . | . . . . . . Total Hacks 15 | . 6 9 . . . Successful 15 | . 6 9 . . . Failed . | . . . . . . Catastrophic . | . . . . . . Database Lockouts . | . . . . . . Manual . | . . . . . . Terminals 10 | . 1 9 . . . Fabricators . | . . . . . . Repair Stations 4 | . 4 . . . . Recycling Units 1 | . 1 . . . . Scanalyzers . | . . . . . . Garrison Access . | . . . . . . Terminal Hacks 10 | . 1 9 . . . Record 7 | . 1 6 . . . Alert Level 1 | . . 1 . . . Locate Traps 1 | . . 1 . . . Zone Layout 1 | . . 1 . . . Fabricator Hacks . | . . . . . . Repair Station Hacks 4 | . 4 . . . . Scan Component 2 | . 2 . . . . Repair 2 | . 2 . . . . Recycling Unit Hacks 1 | . 1 . . . . Report Inventory 1 | . 1 . . . . Scanalyzer . | . . . . . . Garrison Access Hacks . | . . . . . . Unauthorized Hacks . | . . . . . . Terminals . | . . . . . . Fabricators . | . . . . . . Repair Stations . | . . . . . . Recycling Units . | . . . . . . Scanalyzers . | . . . . . . Garrison Access . | . . . . . . Data Cores Recovered . | . . . . . . Used . | . . . . . . Hacking Detections 1 | . . 1 . . . Full Trace Events . | . . . . . . Feedback Events . | . . . . . . Feedback Blocked . | . . . . . . Robot Schematics Acquired . | . . . . . . Robots Built . | . . . . . . Authchips . | . . . . . . Time . | . . . . . . Total Robot Build Rating . | . . . . . . Part Schematics Acquired . | . . . . . . Parts Built . | . . . . . . Authchips . | . . . . . . Time . | . . . . . . Total Part Build Rating . | . . . . . . Parts Repaired 2 | . 2 . . . . Time 64 | . 64 . . . . Parts Recycled . | . . . . . . Recycled Matter . | . . . . . . Retrieved Matter . | . . . . . . Retrieved Components . | . . . . . . Parts Scanalyzed . | . . . . . . Part Schematics Acquired . | . . . . . . Parts Damaged . | . . . . . . Bothacking | -11 -10 -9 -8 -7 -7 ------------ Run | Yrd Mat Mat Mat Fac Low Used RIF Installer . | . . . . . . Robots Hacked 3 | . . . 3 . . Non-combat 2 | . . . 2 . . Combat 1 | . . . 1 . . Robot Hacks Applied 4 | . . . 4 . . parse_system 2 | . . . 2 . . no_distress 1 | . . . 1 . . check_alert 1 | . . . 1 . . Relay Couplers Released . | . . . . . . Fabnet Peak Effective % . | . . . . . . Robots Rewired . | . . . . . . Allies Hacked . | . . . . . . Hacks Repelled . | . . . . . . Allies | -11 -10 -9 -8 -7 -7 -------- Run | Yrd Mat Mat Mat Fac Low Total Allies . | . . . . . . Largest Group . | . . . . . . Highest-Rated Group . | . . . . . . Highest-Rated Ally . | . . . . . . Total Orders . | . . . . . . Ally Attacks . | . . . . . . Total Damage . | . . . . . . Kills . | . . . . . . Allies Corrupted . | . . . . . . Allies Melted . | . . . . . . Intel | -11 -10 -9 -8 -7 -7 ------- Run | Yrd Mat Mat Mat Fac Low Active Infowar (turns) 2089 | 31 305 731 769 149 104 Optics 1045 | . . 23 769 149 104 Terrain 1054 | 31 303 706 14 . . Seismic 2068 | 28 305 731 769 149 86 Robot Analysis Total . | . . . . . . Derelict Logs Recovered . | . . . . . . Drone Launches . | . . . . . . Drone Recoveries . | . . . . . . Exploration | -11 -10 -9 -8 -7 -7 ------------- Run | Yrd Mat Mat Mat Fac Low Turns Passed 2300 | 118 345 731 769 149 188 Spaces Moved 1546 | 80 238 427 381 129 291 Core 192 | 24 . . . . 168 Treads . | . . . . . . Legs 1144 | 56 238 427 381 42 . Wheels . | . . . . . . Hover 210 | . . . . 87 123 Flight . | . . . . . . Fastest Speed 50 | 50 120 120 120 72 50 Average Speed 105 | 99 120 120 120 96 58 Slowest Speed 200 | 120 120 120 120 200 150 Overloaded Moves . | . . . . . . Propulsion Burnouts . | . . . . . . Robots Hopped . | . . . . . . Potential Cave-ins . | . . . . . . Cave-ins Triggered . | . . . . . . Exploration Rate (%) 23 | 4 35 25 31 4 42 Regions Visited 5 Branch Regions 1 Pre-discovered Areas . | . . . . . . Known Exits Taken . | . . . . . . Unknown Exits Taken 5 | 1 1 1 1 1 . Scrap Searched 1 | . . . . . 1 Spaces Dug 10 | . . . 10 . . Terrain Destroyed 48 | . . . 48 . . Melee . | . . . . . . Projectile 1 | . . . 1 . . AOE 47 | . . . 47 . . Terrain Rammed . | . . . . . . Walls Destroyed . | . . . . . . Machines Disabled . | . . . . . . Actions | -11 -10 -9 -8 -7 -7 --------- Run | Yrd Mat Mat Mat Fac Low Total 2080 | 108 295 614 608 148 307 Wait 312 | 2 53 153 82 10 12 Move 1541 | 79 237 426 380 128 291 Hop . | . . . . . . Pick Up 26 | 11 1 3 10 1 . Fast Attach 15 | 1 2 2 5 4 1 Attach 14 | 6 . 2 6 . . Detach . | . . . . . . Swap 23 | 2 1 4 15 1 . Drop 25 | 1 . 7 16 1 . Fire 90 | 5 . 17 65 3 . Melee 6 | . . . 6 . . Ram 3 | . . . . . 3 Kick 13 | 1 1 . 11 . . Crush . | . . . . . . Escape Stasis . | . . . . . . Rewire . | . . . . . . Trap . | . . . . . . Miscellaneous 12 | . . . 12 . . Route ------- -11/Scrapyard -10/Materials (discovered 2 exits: *Mat / [*Sub]) -9/Materials -8/Materials -7/Factory -7/Lower Caves History --------- Turn | Location | Event 7 | -11/Scrapyard | Discovered new exit (range 13) 119 | -11/Scrapyard | Entered Materials 163 | -10/Materials | Discovered new exit (range 6) 196 | -10/Materials | Repaired Seismic Detector 234 | -10/Materials | Repaired Imp. Terrain Scanner 301 | -10/Materials | Discovered new exit (range 10) 316 | -10/Materials | Build established: Mutant 464 | -10/Materials | Entered another Materials area 464 | -9/Materials | Evolved 2 slots: Propulsion x2 930 | -9/Materials | Build established: Scavenger-Mutant 1142 | -9/Materials | Discovered new exit (range 15) 1195 | -9/Materials | Entered another Materials area 1195 | -8/Materials | Evolved 2 slots: Utility x1, Weapon x1 1510 | -8/Materials | Build established: Scavenger-Gunner 1938 | -8/Materials | Discovered new exit (range 18) 1964 | -8/Materials | Entered Factory 1964 | -7/Factory | Evolved 2 slots: Power x1, Propulsion x1 2111 | -7/Factory | Discovered new exit (range 3) 2113 | -7/Factory | Entered Lower Caves 2174 | -7/Lower Caves | Attracted the attention of an 0b10 base 2228 | -7/Lower Caves | Core integrity fell below 50% 2252 | -7/Lower Caves | Lost 11 parts (2p4n2u3w) 2271 | -7/Lower Caves | Core integrity fell below 20% 2301 | -7/Lower Caves | Destroyed by S-27 Virus with Autogun Last Messages --------------- Mic. Nuclear Core destroyed. Penetrated by Slug. Lgt. Nuclear Core destroyed. Gravmag System destroyed. Penetrated by Slug. Slammed into S-27 Virus. Destabilizing: System interference. Visual Processing Unit temporarily disabled. Weapon Cycler destroyed. Slug penetrates Wall. Searching scrap... Found Hrd. Medium Armor Plating. Found 36 Matter. Found Imp. Light Armor Plating. Found 60 Matter. Acquired Hrd. Medium Armor Plating. Acquired 10 matter. Slammed into S-27 Virus. Hrd. Medium Armor Plating destroyed. Map ----- +----------------------------------------------------+ | | | | | | | | | | | | | | | ?????????????????????????????????????????????????? | | ?????????????????????????????????????????????????? | | ?????????????????????????????????????????????????? | | ?????????????????????????????????????????????????? | | ?????????????????????????????????????????????????? | | ?????????????????????????????????????????????????? | | ?????????????????????????????????????????????????? | | ?????????????????????????????????????????????????? | | ?????????????????????????????????????????????????? | | ?????????????????????????????????????????????????? | | ?????????????????????????????????????????????????? | | ?????????????????????????????????????????????????? | | ?????????????????????????????????????????????????? | | ?????????????????????????????????????????????????? | | ?????????????????????????????????????????????????? | | ?????????????????????????????????????????????????? | | ????????????????????????####?####????????????????? | | ???????????????????????## ### ###??????????????? | | ?????????????????# ## @ ########???????? | | ??????????????????# #???????? | | ??????????????????## ##??????? | | ???????????????????## s s #??????? | | ????????????????????## """ """ #??????? | | ?????????????????????# """" " #??????? | | ?????????????????????# "" " " #??????? | | ???????????????????? "" """ #??????? | | ???????????????????### """ """" ##??????? | | ?????????????????????# """ """" #???????? | | ?????????????????????## #???????? | | ??????????????????????### " "" """" ##??????? | | ????????????????????????## "" "" ##?????? | | ?????????????????????????# " """" #?????? | | ?????????????????????????# "" " " #?????? | | ????????????????????????## """ " "" #?????? | | ???????????????????????## """" " "" ###?????? | | ??????????????????????## #???????? | | ??????????????????????# #???????? | | ??????????????????????# ##??????? | | ???????????????????????# ### #??????? | | ?????????????????????????## ????# ## ##??????? | | ????????????????????????????????# ######???????? | | ????????????????????????????????## #????????????? | | ?????????????????????????????????# ##???????????? | +----------------------------------------------------+ Best States ------------- Heat Dissipation 34 Energy Generation 24 Energy Capacity 250 Matter Stores 300 Matter Capacity 300 Sight Range 18 Terrain Scan Range 16 Terrain Scan Density 10 Armor Coverage 225 Weapon Cycling 15 Evasion (%) 55 Item Schematics ----------------- None Robot Schematics ------------------ None Fabricated ------------ Nothing Repaired ---------- Imp. Terrain Scanner | 50% | -10/Materials Alien Tech Used ----------------- None Achievements -------------- Please Form A Line Challenges ------------ None Game ------ Seed SapperScanInterpreter Manual? 0 Play Time 00:44:02 Cumulative 8.1 hours Start 2025.08.12 @ 21:25:04 End 2025.08.12 @ 22:12:14 Sessions 1 Manual Loads 0 Difficulty Rogue Special Mode None Game No. 17 Rogue 17 Adventurer 0 Explorer 0 Win Type - Total 0 Types 0/0/0/0/0/0/0/0/0/0 Lore% 8 Gallery% 10 Achievement% 11 Wizard Run 0 Options --------- Layout 1 ASCII 0 Keyboard 0 Movement Numpad Keybinds 0 Fullscreen 1 Font 24/Smallcaps Map View 50x35 Zoom Use 0% Tactical HUD 0 Map Filters NONE Filters NONE Steam 1 RUN: 7a7da32e-e34c-4bf5-bce0-8780aa675db7